{"text_format":"1","workbook":"xlsx","n_sheets":4,"sheets":["Order form","Languages","LangBackup","Setup"],"not_rendered":{"charts":0,"images":4,"macros":1,"external_links":2,"defined_names":12,"comments":0,"pivot_tables":0},"unopened":[],"bounds":{"document_bytes":16777216,"sheet_cells":100000,"rows_first":2000,"rows_last":500,"rows_between":2000,"halvings":0,"cell_chars":16384,"cell_head_chars":4096},"cells_cut":0,"cells_raw":0,"read":"whole","date_system":"1900"}

{"sheet":"Order form","index":0,"n_rows":71,"n_cols":42,"rows_kept":71,"cut":false,"hidden":false,"merged":[[27,26,27,29],[49,16,49,35],[50,16,50,25],[53,16,53,35],[54,16,54,35],[50,27,50,35],[33,16,33,35],[38,16,38,25],[38,26,38,29],[38,30,38,35],[30,16,30,35],[32,16,32,35],[27,16,27,25],[27,30,27,35],[34,16,34,35],[44,16,44,35],[1,12,1,27],[2,12,2,27],[10,18,10,25],[14,28,14,35],[14,18,14,25],[2,30,2,35],[7,18,7,25],[8,18,8,25],[9,18,9,25],[13,18,13,25],[13,28,13,35],[14,5,14,13],[1,6,1,11],[1,30,1,35],[11,5,11,13],[7,5,7,13],[23,16,23,35],[22,16,22,25],[22,30,22,35],[22,26,22,29],[15,1,15,35],[17,1,17,6],[18,1,18,6],[8,5,8,13],[9,5,9,13],[10,5,10,13],[7,28,7,35],[8,28,8,35],[9,28,9,35],[10,28,10,35],[11,28,11,35],[11,18,11,25],[17,7,17,35],[45,16,45,35],[42,16,42,35],[21,16,21,35],[28,16,28,35],[35,16,35,35],[29,16,29,35],[36,16,36,35],[43,16,43,35],[40,16,40,35],[31,16,31,35],[24,16,24,35],[25,16,25,35],[26,16,26,35],[55,16,55,35],[5,5,5,13],[5,18,5,25],[5,28,5,35],[6,5,6,13],[6,18,6,25],[6,28,6,35],[12,5,12,13],[12,28,12,35],[41,16,41,35],[13,5,13,13],[12,18,12,25],[20,16,20,35],[48,16,48,35],[52,16,52,35],[18,7,18,35],[70,7,70,10],[63,1,68,35],[56,16,56,35],[57,16,57,35],[70,25,70,35],[70,11,70,12],[70,13,70,15]]}
["DELTA20190624EN"]
[100,"La langue",null,null,null,null,"French",null,null,null,null,null,"LIFTBOY 5",null,null,null,null,null,null,null,null,null,null,null,null,null,null,null,"Date",null,{"$f":"TODAY()","v":"2021-12-15"}]
[110,null,null,null,null,null,null,null,null,null,null,null,"BON DE COMMANDE",null,null,null,null,null,null,null,null,null,null,null,null,null,null,null,"Version",null,"Lehner 01"]
[]
[null,null,null,null,null,null,null,null,null,null,null,null,null,null,"Distributeur:",null,null,null,null,null,null,null,null,null,null,null,"Adresse de livraison:"]
[120,"Company:",null,null,null,"Lehner Lifttechnik GmbH",null,null,null,null,null,null,null,null,"Société",null,null,null,null,null,null,null,null,null,null,null,"Société"]
[130,"Name:",null,null,null,"Max Lehner",null,null,null,null,null,null,null,null,"Name:",null,null,null,null,null,null,null,null,null,null,null,"Name:"]
[140,"Adress:",null,null,null,"Salling 8",null,null,null,null,null,null,null,null,"Adresse",null,null,null,null,null,null,null,null,null,null,null,"Adresse"]
[150,"Postcode:",null,null,null,"A - 4724",null,null,null,null,null,null,null,null,"Code postal",null,null,null,null,null,null,null,null,null,null,null,"Code postal"]
[160,"City:",null,null,null,"Neukirchen am Walde",null,null,null,null,null,null,null,null,"Ville",null,null,null,null,null,null,null,null,null,null,null,"Ville"]
[170,"Country:",null,null,null,"Austria",null,null,null,null,null,null,null,null,"Le pays",null,null,null,null,null,null,null,null,null,null,null,"Le pays"]
[180,"Phone no:",null,null,null,"+43 7278 3514-0",null,null,null,null,null,null,null,null,"Téléphone",null,null,null,null,null,null,null,null,null,null,null,"Téléphone"]
[190,"E-mail:",null,null,null,"office@lehnerlifttechnik.at",null,null,null,null,null,null,null,null,"Email"]
[200,"ID:",null,null,null,"ATU22360601",null,null,null,null,null,null,null,null,"ID:"]
[210,"VAT ID:",null,null,null,"ATU22360601",null,null,null,null,null,null,null,null,"VAT ID:"]
[220,"Adresse de ramassage: Spedition Englmayer, Wiesenstrasse 71, 4600 Wels, Austria"]
[]
[null,"Num. de production",null,null,null,null,null,"Nom de référence de la commande (ou numéro)"]
[230]
[]
[1000,"Type of platform lift",null,null,null,null,null,null,null,null,null,null,null,null,null,null,"Plateforme élévatrice ouverte"]
[1010,"Hauteur de levage exacte",null,null,null,null,null,null,null,null,null,null,null,null,null,null,null,null,null,null,null,null,null,null,null,null,null,null,null,null,null,null,null,null,null,null,null,null,"La hauteur maximale de levage sans fosse est de 1300 mm"]
[null,"Fosse (lsi existante) en mm",null,null,null,null,null,null,null,null,null,null,null,null,null,null,"Non (Standard)",null,null,null,null,null,null,null,null,null,{"$f":"IF(ISNUMBER(FIND(\"n\",Q23)),\"\",\"mm:\")","v":""},null,null,null,null,null,null,null,null,null,null,null,{"$f":"IF(Q23=\"Oui\",\"La hauteur de levage est réduite par la profondeur de la fosse\", \"\")","v":""}]
[null,"Lieu d'installation",null,null,null,null,null,null,null,null,null,null,null,null,null,null,"Intérieur"]
[null,"Rampe d'accès",null,null,null,null,null,null,null,null,null,null,null,null,null,null,"Automatiquement",null,null,null,null,null,null,null,null,null,null,null,null,null,null,null,null,null,null,null,null,null,{"$f":"IF(Q25=\"Ja\",\"The lifting travel is reduced by the pit depth\", \"\")","v":""}]
[null,"Sortie latérale sur le palier supérieur",null,null,null,null,null,null,null,null,null,null,{"$f":"IF(Q25=\"No (standard)\",\"See illustration on the right\", \"\")","v":""},null,null,null,"Non (standard)",null,null,null,null,null,null,null,null,null,null,null,null,null,null,null,null,null,null,null,null,null,{"$f":"IF(Q26<>\"Non (standard)\",\"Voir l'illustration à droite\", \"\")","v":""}]
[null,"Entrée latérale sur le palier inférieur ",null,null,null,null,null,null,null,null,null,null,null,null,null,null,"Non (standard)",null,null,null,null,null,null,null,null,null,null,null,null,null,null,null,null,null,null,null,null,null,{"$f":"IF(Q27<>\"Non (standard)\",\"Voir l'illustration à droite\", \"\")","v":""},"À GAUCHE - Entrée latérale sur le palier inférieur ","DROIT - Entrée latérale sur le palier inférieur "]
[1020,"Couleur de la surface",null,null,null,null,null,null,null,null,null,null,null,null,null,null,"RAL 7035 (standard)",null,null,null,null,null,null,null,null,null,{"$f":"IF(ISNUMBER(FIND(\"Special\",Q28)),\"RAL:\",\"\")","v":""}]
[]
[null,"Specifications"]
[1040,"Poteau pour boîtier cde",null,null,null,null,null,null,null,null,null,null,null,null,null,null,"Non"]
[1050,"Butée de contact",null,null,null,null,null,null,null,null,null,null,null,null,null,null,"Non"]
[1060,"Boîtes palières câblé",null,null,null,null,null,null,null,null,null,null,null,null,null,null,"Non"]
[1070,"Boîtes palières radio commande",null,null,null,null,null,null,null,null,null,null,null,null,null,null,2]
[null,"Pilier pour fixation des boîtes palières ",null,null,null,null,null,null,null,null,null,null,null,null,null,null,"Non"]
[1080,"Plate-forme spéciale de 1100x1400 mm",null,null,null,null,null,null,null,null,null,null,null,null,null,null,"Non"]
[1090,"Rampe d'acces de 750 mm",null,null,null,null,null,null,null,null,null,null,null,null,null,null,"Oui",null,null,null,null,null,null,null,null,null,null,"RAL:",null,"RAL:",null,null,null,null,null,null,null,null,{"$f":"IF(Q36=\"Qui\",\"Pas possible pour l'entrée latérale sur le palier inférieur\", \"\")","v":""}]
[1100]
[1110,"Longeur speciale pour la rampe d'acces",null,null,null,null,null,null,null,null,null,null,null,null,null,null,"Non",null,null,null,null,null,null,null,null,null,{"$f":"IF(ISNUMBER(FIND(\"N\",Q39)),\"\",\"mm:\")","v":""},null,null,null,null,null,null,null,null,null,null,null,null,"Sens d'ouverture du porte DIN"]
[1120]
[1130,"GSM Module for emergency call",null,null,null,null,null,null,null,null,null,null,null,null,null,null,"Non"]
[1140,"Metal sheet covering backside of drive tower",null,null,null,null,null,null,null,null,null,null,null,null,null,null,"Non"]
[1150,"Gate opening on upper landing",null,null,null,null,null,null,null,null,null,null,null,null,null,null,"Droit"]
[1160,"Gate opening on lower landing",null,null,null,null,null,null,null,null,null,null,null,null,null,null,"Portillon a gauche",null,null,null,null,null,null,null,null,null,null,null,null,null,null,null,null,null,null,null,null,null," "]
[null,"Rampe d'accès fixe au niveau du palier inférieur",null,null,null,null,null,null,null,null,null,null,null,null,null,null,"Non",null,null,null,null,null,null,null,null,null,null,null,null,null,null,null,null,null,null,null,null,null,{"$f":"IF(Q44<>\"Rampe automatique\",\"Veuillez sélectionner 'rampe d'accès fixe' si nécessaire\", \"\")","v":"Veuillez sélectionner 'rampe d'accès fixe' si nécessaire"},"Á gauche",null,"Droit"]
[1170,"Portes automatiques  ",null,null,null,null,null,null,null,null,null,null,null,null,null,null,"Non"]
[]
[null,"Autres options"]
[1210,"Boîte de transport",null,null,null,null,null,null,null,null,null,null,null,null,null,null,"Q1 - Boîte en bois (standard)"]
[null,"Change in the order after approval",null,null,null,null,null,null,null,null,null,null,null,null,null,null,"Non",null,null,null,null,null,null,null,null,null,null,null,null,null,null,null,null,null,null,null,null,null,null,"Rechts",null,"Links"]
[1220,"Garantie",null,null,null,null,null,null,null,null,null,null,null,null,null,null,"other"]
[1230]
[1240,null,null,null,null,null,null,null,null,null,null,null,null,null,null,null,"Non"]
[]
[null,null,null,null,null,null,null,null,null,null,null,null,null,null,null,null,"Non"]
[1260,null,null,null,null,null,null,null,null,null,null,null,null,null,null,null,"Non"]
[1460,null,null,null,null,null,null,null,null,null,null,null,null,null,null,null,"Non"]
[null,"Situation de l'approvisionnement en électricité",null,null,null,null,null,null,null,null,null,null,null,null,null,null,"Retour - côté droit"]
[]
[]
[]
[null,"Information additionnelle"]
[]
[1480,null,null,null,null,null,null,null,null,null,null,null,null,null,null,null,null,null,null,null,null,null,null,null,null,null,null,null,null,null,null,null,null,null,null,null,null,null,null,"Droit",null,"Á gauche"]
[]
[]
[]
[]
[]
[]
[240,"Date de livraison",null,null,null,null,null,"Semaine",null,null,null,null,null,2022,null,null,null,null,null,null,null,"Preparé par"]

{"sheet":"Languages","index":1,"n_rows":165,"n_cols":10,"rows_kept":165,"cut":false,"hidden":true,"merged":[]}
["Cell","Type","English","Deutsch","French","Español"]
[{"$f":"CELL(\"address\",'Order form'!M2)","v":"'[LIFTBOY5_Order form_2022_EN.xlsm]Order form'!$M$2"},"Label","LIFTBOY 5","LIFTBOY 5","LIFTBOY 5","LIFTBOY 5"]
[{"$f":"CELL(\"address\",'Order form'!M3)","v":"'[LIFTBOY5_Order form_2022_EN.xlsm]Order form'!$M$3"},"Label","ORDER FORM","BESTELLFORMULAR","BON DE COMMANDE","FORMULARIO DE PEDIDO"]
[{"$f":"CELL(\"address\",'Order form'!AC2)","v":"'[LIFTBOY5_Order form_2022_EN.xlsm]Order form'!$AC$2"},"Label","Date","Datum","Date","Fecha"]
[{"$f":"CELL(\"address\",'Order form'!B2)","v":"'[LIFTBOY5_Order form_2022_EN.xlsm]Order form'!$B$2"},"Label","Language","Sprache","La langue","Idioma"]
[{"$f":"CELL(\"address\",'Order form'!AC3)","v":"'[LIFTBOY5_Order form_2022_EN.xlsm]Order form'!$AC$3"},"Label","Version","Version","Version","Versión"]
[{"$f":"CELL(\"address\",'Order form'!O5)","v":"'[LIFTBOY5_Order form_2022_EN.xlsm]Order form'!$O$5"},"Label","Distributor: (always fill out)","Händler: (immer ausfüllen)","Distributeur:","Distribuidor: (siempre llene)"]
[{"$f":"CELL(\"address\",'Order form'!AA5)","v":"'[LIFTBOY5_Order form_2022_EN.xlsm]Order form'!$AA$5"},"Label","Delivery address: (always fill out)","Lieferadresse: (immer ausfüllen)","Adresse de livraison:","Dirección de entrega: (siempre completar)"]
[{"$f":"CELL(\"address\",'Order form'!O6)","v":"'[LIFTBOY5_Order form_2022_EN.xlsm]Order form'!$O$6"},"Label","Company","Firma","Société","Empresa"]
[{"$f":"CELL(\"address\",'Order form'!AA6)","v":"'[LIFTBOY5_Order form_2022_EN.xlsm]Order form'!$AA$6"},"Label","Company","Firma","Société","Empresa"]
[{"$f":"CELL(\"address\",'Order form'!O8)","v":"'[LIFTBOY5_Order form_2022_EN.xlsm]Order form'!$O$8"},"Label","Address","Anschrift","Adresse","Dirección"]
[{"$f":"CELL(\"address\",'Order form'!AA8)","v":"'[LIFTBOY5_Order form_2022_EN.xlsm]Order form'!$AA$8"},"Label","Address","Anschrift","Adresse","Dirección"]
[{"$f":"CELL(\"address\",'Order form'!O9)","v":"'[LIFTBOY5_Order form_2022_EN.xlsm]Order form'!$O$9"},"Label","Postcode","PLZ","Code postal","Código postal"]
[{"$f":"CELL(\"address\",'Order form'!AA9)","v":"'[LIFTBOY5_Order form_2022_EN.xlsm]Order form'!$AA$9"},"Label","Postcode","PLZ","Code postal","Código postal"]
[{"$f":"CELL(\"address\",'Order form'!O10)","v":"'[LIFTBOY5_Order form_2022_EN.xlsm]Order form'!$O$10"},"Label","City","Stadt","Ville","Ciudad"]
[{"$f":"CELL(\"address\",'Order form'!AA10)","v":"'[LIFTBOY5_Order form_2022_EN.xlsm]Order form'!$AA$10"},"Label","City","Stadt","Ville","Ciudad"]
[{"$f":"CELL(\"address\",'Order form'!O11)","v":"'[LIFTBOY5_Order form_2022_EN.xlsm]Order form'!$O$11"},"Label","Country","Land","Le pays","País"]
[{"$f":"CELL(\"address\",'Order form'!AA11)","v":"'[LIFTBOY5_Order form_2022_EN.xlsm]Order form'!$AA$11"},"Label","Country","Land","Le pays","País"]
[{"$f":"CELL(\"address\",'Order form'!O12)","v":"'[LIFTBOY5_Order form_2022_EN.xlsm]Order form'!$O$12"},"Label","Telephone","Telefon","Téléphone","Teléfono"]
[{"$f":"CELL(\"address\",'Order form'!AA12)","v":"'[LIFTBOY5_Order form_2022_EN.xlsm]Order form'!$AA$12"},"Label","Telephone","Telefon","Téléphone","Teléfono"]
[{"$f":"CELL(\"address\",'Order form'!B16)","v":"'[LIFTBOY5_Order form_2022_EN.xlsm]Order form'!$B$16"},"Label","Pick up address for lifts: Spedition Englmayer, Wiesenstrasse 71, 4600 Wels, Austria","ABHOLADRESSE: Spedition Englmayer, Wiesenstrasse 71, 4600 Wels, Austria","Adresse de ramassage: Spedition Englmayer, Wiesenstrasse 71, 4600 Wels, Austria","Dirección de recogida de los equipos: Spedition Englmayer, Wiesenstrasse 71, 4600 Wels, Austria"]
[{"$f":"CELL(\"address\",'Order form'!B18)","v":"'[LIFTBOY5_Order form_2022_EN.xlsm]Order form'!$B$18"},"Label","Production no.","Produktionsnr.","Num. de production","Producción no."]
[{"$f":"CELL(\"address\",'Order form'!H18)","v":"'[LIFTBOY5_Order form_2022_EN.xlsm]Order form'!$H$18"},"Label","Order reference name (or number)","Auftragsreferenz (Name oder Nummer)","Nom de référence de la commande (ou numéro)","Nombre de referencia del pedido (o número)"]
[]
[null,null,null,null,null,null,"Left","Links","La gauche","Izquierda"]
[null,null,null,null,null,null,"Right","Rechts","Droite","Derecha"]
[]
[]
[{"$f":"CELL(\"address\",'Order form'!B21)","v":"'[LIFTBOY5_Order form_2022_EN.xlsm]Order form'!$B$21"},"Label","Type of platform lift","Type of platform lift","Type of platform lift","Type of platform lift"]
[{"$f":"CELL(\"address\",'Order form'!B22)","v":"'[LIFTBOY5_Order form_2022_EN.xlsm]Order form'!$B$22"},"Label","Exact lifting height","Exakte Hubhöhe","Hauteur de levage exacte","Altura de elevación exacta"]
[{"$f":"CELL(\"address\",'Order form'!B23)","v":"'[LIFTBOY5_Order form_2022_EN.xlsm]Order form'!$B$23"},"Label","Pit (if applicable) in mm","Montagegrube in mm (falls vorhanden)","Fosse (lsi existante) en mm","Foso (si existe) en mm"]
[{"$f":"CELL(\"address\",'Order form'!B24)","v":"'[LIFTBOY5_Order form_2022_EN.xlsm]Order form'!$B$24"},"Label","Installation location","Installationsort","Lieu d'installation","Ubicación de la instalación"]
[{"$f":"CELL(\"address\",'Order form'!B25)","v":"'[LIFTBOY5_Order form_2022_EN.xlsm]Order form'!$B$25"},"Label","Loading ramp","Auffahrrampe","Rampe d'accès","Rampa de acceso"]
[{"$f":"CELL(\"address\",'Order form'!B26)","v":"'[LIFTBOY5_Order form_2022_EN.xlsm]Order form'!$B$26"},"Label","Side exit on upper landing","Seitliche Ausfahrt an oberer Haltestelle","Sortie latérale sur le palier supérieur","Salida lateral en el aterrizaje superior"]
[{"$f":"CELL(\"address\",'Order form'!B27)","v":"'[LIFTBOY5_Order form_2022_EN.xlsm]Order form'!$B$27"},"Label","Side entry on lower landing ","Seitliche Auffahrt an unterer Haltestelle","Entrée latérale sur le palier inférieur ","Entrada lateral en el aterrizaje inferior "]
[{"$f":"CELL(\"address\",'Order form'!B28)","v":"'[LIFTBOY5_Order form_2022_EN.xlsm]Order form'!$B$28"},"Label","Surface color","Farbe der Anlage","Couleur de la surface","El color de la superficie"]
[]
[]
[{"$f":"CELL(\"address\",'Order form'!AN27)","v":"'[LIFTBOY5_Order form_2022_EN.xlsm]Order form'!$AN$27"},"Label","LEFT - Side entry on lower landing ","LINKS - Seitliche Auffahrt an unterer Haltestelle","À GAUCHE - Entrée latérale sur le palier inférieur ","IZQUIERDA - Entrada lateral en el aterrizaje inferior "]
[{"$f":"CELL(\"address\",'Order form'!AO27)","v":"'[LIFTBOY5_Order form_2022_EN.xlsm]Order form'!$AO$27"},"Label","RIGHT - Side entry on lower landing ","RECHTS - Seitliche Auffahrt an unterer Haltestelle","DROIT - Entrée latérale sur le palier inférieur ","DERECHA - Entrada lateral en el aterrizaje inferior "]
[]
[{"$f":"CELL(\"address\",'Order form'!Q21)","v":"'[LIFTBOY5_Order form_2022_EN.xlsm]Order form'!$Q$21"},"Dropdown","Open platformlift","Offener Plattformlift","Plateforme élévatrice ouverte","Plataforma abierta"]
[{"$f":"CELL(\"address\",'Order form'!Q21)","v":"'[LIFTBOY5_Order form_2022_EN.xlsm]Order form'!$Q$21"},"Dropdown","Platformlift with enclosed glass shaft","Plattformlift mit Glaschacht","Plateforme élévatrice avec gaine en verre","Plataforma con hueco de cristal"]
[]
[{"$f":"CELL(\"address\",'Order form'!Q23)","v":"'[LIFTBOY5_Order form_2022_EN.xlsm]Order form'!$Q$23"},"Dropdown","No (standard)","Nein (Standard)","Non (Standard)","No (estándar)"]
[{"$f":"CELL(\"address\",'Order form'!Q23)","v":"'[LIFTBOY5_Order form_2022_EN.xlsm]Order form'!$Q$23"},"Dropdown","Yes","Ja","Oui","Sí"]
[{"$f":"CELL(\"address\",'Order form'!Q24)","v":"'[LIFTBOY5_Order form_2022_EN.xlsm]Order form'!$Q$24"},"Dropdown","Indoor","Innen","Intérieur","Interior"]
[{"$f":"CELL(\"address\",'Order form'!Q24)","v":"'[LIFTBOY5_Order form_2022_EN.xlsm]Order form'!$Q$24"},"Dropdown","Outdoor","Im Außenbereich","De plein air","Al aire libre"]
[{"$f":"CELL(\"address\",'Order form'!Q25)","v":"'[LIFTBOY5_Order form_2022_EN.xlsm]Order form'!$Q$25"},"Dropdown","Automatic","Automatisch","Automatiquement","Automático"]
[{"$f":"CELL(\"address\",'Order form'!Q25)","v":"'[LIFTBOY5_Order form_2022_EN.xlsm]Order form'!$Q$25"},"Dropdown","Manual","Manuell","Manuellement","Manual"]
[{"$f":"CELL(\"address\",'Order form'!Q26)","v":"'[LIFTBOY5_Order form_2022_EN.xlsm]Order form'!$Q$26"},"Dropdown","No (standard)","Nein (Standard)","Non (standard)","No (estándar)"]
[{"$f":"CELL(\"address\",'Order form'!Q26)","v":"'[LIFTBOY5_Order form_2022_EN.xlsm]Order form'!$Q$26"},"Dropdown","Yes - on left side","Ja - an der linken Seite","Oui - sur le côté gauche","Sí - en el lado izquierdo"]
[{"$f":"CELL(\"address\",'Order form'!Q26)","v":"'[LIFTBOY5_Order form_2022_EN.xlsm]Order form'!$Q$26"},"Dropdown","Yes - on right side","Ja - an der rechten Seite","Oui - sur le côté droit","Sí - en el lado derecho"]
[{"$f":"CELL(\"address\",'Order form'!Q27)","v":"'[LIFTBOY5_Order form_2022_EN.xlsm]Order form'!$Q$27"},"Dropdown","No (standard)","Nein (Standard)","Non (standard)","No (estándar)"]
[{"$f":"CELL(\"address\",'Order form'!Q27)","v":"'[LIFTBOY5_Order form_2022_EN.xlsm]Order form'!$Q$27"},"Dropdown","Yes - on left side","Ja - an der linken Seite","Oui - sur le côté gauche","Sí - en el lado izquierdo"]
[{"$f":"CELL(\"address\",'Order form'!Q27)","v":"'[LIFTBOY5_Order form_2022_EN.xlsm]Order form'!$Q$27"},"Dropdown","Yes - on right side","Ja - an der rechten Seite","Oui - sur le côté droit","Sí - en el lado derecho"]
[{"$f":"CELL(\"address\",'Order form'!Q28)","v":"'[LIFTBOY5_Order form_2022_EN.xlsm]Order form'!$Q$28"},"Dropdown","RAL 7035 (standard)","RAL 7035 (Standard)","RAL 7035 (standard)","RAL 7035 (estándar)"]
[{"$f":"CELL(\"address\",'Order form'!Q28)","v":"'[LIFTBOY5_Order form_2022_EN.xlsm]Order form'!$Q$28"},"Dropdown","RAL 9007 (standard)","RAL 9007 (Standard)","RAL 9007 (standard)","RAL 9007 (estándar)"]
[{"$f":"CELL(\"address\",'Order form'!Q28)","v":"'[LIFTBOY5_Order form_2022_EN.xlsm]Order form'!$Q$28"},"Dropdown","Special RAL","Special RAL","Special RAL","Special RAL"]
[{"$f":"CELL(\"address\",'Order form'!AM22)","v":"'[LIFTBOY5_Order form_2022_EN.xlsm]Order form'!$AM$22"},"Label","The maximum lifting height without a pit is 1300 mm","Die maximale Hubhöhe ohne Grubenmontage ist 1300 mm","La hauteur maximale de levage sans fosse est de 1300 mm","La altura máxima de elevación sin foso es de 1300 mm"]
[{"$f":"CELL(\"address\",'Order form'!AM23)","v":"'[LIFTBOY5_Order form_2022_EN.xlsm]Order form'!$AM$23"},"Formula","=IF(Q23=\"Yes\",\"The lifting height is reduced by the pit depth\", \"\")","=IF(Q23=\"Ja\",\"Die Hubhöhe reduziert sich um die Grubentiefe\", \"\")","=IF(Q23=\"Oui\",\"La hauteur de levage est réduite par la profondeur de la fosse\", \"\")","=IF(Q23=\"Sí\",\"La altura de elevación se reduce por la profundidad del foso\", \"\")"]
[{"$f":"CELL(\"address\",'Order form'!AM26)","v":"'[LIFTBOY5_Order form_2022_EN.xlsm]Order form'!$AM$26"},"Formula","=IF(Q26<>\"No (standard)\",\"See the illustration on the right\", \"\")","=IF(Q26<>\"Nein (standard)\",\"Beachten Sie die Illustration rechts\", \"\")","=IF(Q26<>\"Non (standard)\",\"Voir l'illustration à droite\", \"\")","=IF(Q26<>\"No (estándar)\",\"Vea la ilustración de la derecha\", \"\")"]
[{"$f":"CELL(\"address\",'Order form'!AM27)","v":"'[LIFTBOY5_Order form_2022_EN.xlsm]Order form'!$AM$27"},"Formula","=IF(Q27<>\"No (standard)\",\"See the illustration on the right\", \"\")","=IF(Q27<>\"Nein (standard)\",\"Beachten Sie die Illustration rechts\", \"\")","=IF(Q27<>\"Non (standard)\",\"Voir l'illustration à droite\", \"\")","=IF(Q27<>\"No (estándar)\",\"Vea la ilustración de la derecha\", \"\")"]
[{"$f":"CELL(\"address\",'Order form'!AM37)","v":"'[LIFTBOY5_Order form_2022_EN.xlsm]Order form'!$AM$37"},"Formula","=IF(Q36=\"Yes\",\"Not possible for side entry on lower level\", \"\")","=IF(Q36=\"Ja\",\"Nicht möglich für seitliche Auffahrt an unterer Haltestellel\", \"\")","=IF(Q36=\"Qui\",\"Pas possible pour l'entrée latérale sur le palier inférieur\", \"\")","=IF(Q36=\"Sí\",\"No es posible para la entrada lateral en el nivel inferior\", \"\")"]
[{"$f":"CELL(\"address\",'Order form'!AM45)","v":"'[LIFTBOY5_Order form_2022_EN.xlsm]Order form'!$AM$45"},"Formula","=IF(Q44<>\"Automatic access ramp\",\"Please select fixed access ramp if needed\", \"\")","=IF(Q44<>\"Automatische Auffahrrampe\",\"Bitte 'Fixe Auffahrrampe auswählen' falls nötig\", \"\")","=IF(Q44<>\"Rampe automatique\",\"Veuillez sélectionner 'rampe d'accès fixe' si nécessaire\", \"\")","=IF(Q44<>\"Rampa automatica\",\"Seleccione la 'rampa de acceso fija' si es necesario\", \"\")"]
[{"$f":"CELL(\"address\",'Order form'!AN39)","v":"'[LIFTBOY5_Order form_2022_EN.xlsm]Order form'!$AN$39"},"Label","Gate opening direction DIN","Richtung der Türöffnung DIN","Sens d'ouverture du porte DIN","Dirección de apertura de la puerta DIN"]
[{"$f":"CELL(\"address\",'Order form'!AN64)","v":"'[LIFTBOY5_Order form_2022_EN.xlsm]Order form'!$AN$64"},"Label","Right","Rechts","Droit","Derecha"]
[{"$f":"CELL(\"address\",'Order form'!AN45)","v":"'[LIFTBOY5_Order form_2022_EN.xlsm]Order form'!$AN$45"},"Label","Left","Links","Á gauche","Izquierda"]
[{"$f":"CELL(\"address\",'Order form'!AP45)","v":"'[LIFTBOY5_Order form_2022_EN.xlsm]Order form'!$AP$45"},"Label","Right","Rechts","Droit","Derecha"]
[{"$f":"CELL(\"address\",'Order form'!AP64)","v":"'[LIFTBOY5_Order form_2022_EN.xlsm]Order form'!$AP$64"},"Label","Left","Links","Á gauche","Izquierda"]
[{"$f":"CELL(\"address\",'Order form'!B30)","v":"'[LIFTBOY5_Order form_2022_EN.xlsm]Order form'!$B$30"},"Label","Specifications","Specifications","Specifications","Specifications"]
[{"$f":"CELL(\"address\",'Order form'!B31)","v":"'[LIFTBOY5_Order form_2022_EN.xlsm]Order form'!$B$31"},"Label","Pillar for control panel","Bediensäule","Poteau pour boîtier cde","Columna para el control de la plataforma"]
[{"$f":"CELL(\"address\",'Order form'!B32)","v":"'[LIFTBOY5_Order form_2022_EN.xlsm]Order form'!$B$32"},"Label","Contact bar","Kontaktleisten","Butée de contact","Bar de contacto en los 4 lados"]
[{"$f":"CELL(\"address\",'Order form'!B33)","v":"'[LIFTBOY5_Order form_2022_EN.xlsm]Order form'!$B$33"},"Label","Hard wired external control station","Verdrahtete Außensteuerungen","Boîtes palières câblé","Controles externos cableados"]
[{"$f":"CELL(\"address\",'Order form'!B34)","v":"'[LIFTBOY5_Order form_2022_EN.xlsm]Order form'!$B$34"},"Label","Radio controlled external control station","Funk Außensteuerungen","Boîtes palières radio commande","Controles externos radio"]
[{"$f":"CELL(\"address\",'Order form'!B35)","v":"'[LIFTBOY5_Order form_2022_EN.xlsm]Order form'!$B$35"},"Label","Pillar for external control fixation","Befestigungssäule für Außensteuerung","Pilier pour fixation des boîtes palières ","Pilar para fijación de control externo"]
[{"$f":"CELL(\"address\",'Order form'!B36)","v":"'[LIFTBOY5_Order form_2022_EN.xlsm]Order form'!$B$36"},"Label","Special platform size of 1100x1400 mm","Spezielle Plattformgröße 1100x1400mm","Plate-forme spéciale de 1100x1400 mm","Plataforma especial de 1100x1400 mm"]
[{"$f":"CELL(\"address\",'Order form'!B37)","v":"'[LIFTBOY5_Order form_2022_EN.xlsm]Order form'!$B$37"},"Label","750 mm access ramp","750mm Auffahrrampe","Rampe d'acces de 750 mm","Rampa de acceso de 750 mm"]
[null,null,null," "]
[{"$f":"CELL(\"address\",'Order form'!B39)","v":"'[LIFTBOY5_Order form_2022_EN.xlsm]Order form'!$B$39"},"Label","Special size access ramp","Speziallänge für Auffahrrampe","Longeur speciale pour la rampe d'acces","Longitud especial para la rampa de acceso"]
[null,null,{"$f":"IF(AND(Q81=0,Q80=\"yes\"),\"Set the special rail LENGTH in mm\",\"\")","v":""}]
[{"$f":"CELL(\"address\",'Order form'!B41)","v":"'[LIFTBOY5_Order form_2022_EN.xlsm]Order form'!$B$41"},"Label","GSM Module for emergency call","GSM Module for emergency call","GSM Module for emergency call","GSM Module for emergency call"]
[{"$f":"CELL(\"address\",'Order form'!B42)","v":"'[LIFTBOY5_Order form_2022_EN.xlsm]Order form'!$B$42"},"Label","Metal sheet covering backside of drive tower","Metal sheet covering backside of drive tower","Metal sheet covering backside of drive tower","Metal sheet covering backside of drive tower"]
[{"$f":"CELL(\"address\",'Order form'!B43)","v":"'[LIFTBOY5_Order form_2022_EN.xlsm]Order form'!$B$43"},"Label","Gate opening on upper landing","Türöffnung an oberer Haltestelle","Gate opening on upper landing","Gate opening on upper landing"]
[{"$f":"CELL(\"address\",'Order form'!B44)","v":"'[LIFTBOY5_Order form_2022_EN.xlsm]Order form'!$B$44"},"Label","Access ramp or gate opening on lower landing","Auffahrrampe oder Türöffnung an unterer Haltestelle","Gate opening on lower landing","Gate opening on lower landing"]
[{"$f":"CELL(\"address\",'Order form'!B45)","v":"'[LIFTBOY5_Order form_2022_EN.xlsm]Order form'!$B$45"},"Label","Fixed access ramp on lower landing floor","Fixe Auffahrrampe am Boden montiert","Rampe d'accès fixe au niveau du palier inférieur","Rampa de acceso fija en el piso inferior del rellano"]
[{"$f":"CELL(\"address\",'Order form'!B46)","v":"'[LIFTBOY5_Order form_2022_EN.xlsm]Order form'!$B$46"},"Label","Automatic gate openers","Automatische Türöffner","Portes automatiques  ","Porteros automáticos "]
[]
[{"$f":"CELL(\"address\",'Order form'!Q31)","v":"'[LIFTBOY5_Order form_2022_EN.xlsm]Order form'!$Q$31"},"Dropdown","No","Nein","Non","No"]
[{"$f":"CELL(\"address\",'Order form'!Q31)","v":"'[LIFTBOY5_Order form_2022_EN.xlsm]Order form'!$Q$31"},"Dropdown","Yes","Ja","Oui","Sí"]
[{"$f":"CELL(\"address\",'Order form'!Q32)","v":"'[LIFTBOY5_Order form_2022_EN.xlsm]Order form'!$Q$32"},"Dropdown","No","Nein","Non","No"]
[{"$f":"CELL(\"address\",'Order form'!Q32)","v":"'[LIFTBOY5_Order form_2022_EN.xlsm]Order form'!$Q$32"},"Dropdown","Yes","Ja","Oui","Sí"]
[{"$f":"CELL(\"address\",'Order form'!Q33)","v":"'[LIFTBOY5_Order form_2022_EN.xlsm]Order form'!$Q$33"},"Dropdown","No","Nein","Non","No"]
[{"$f":"CELL(\"address\",'Order form'!Q33)","v":"'[LIFTBOY5_Order form_2022_EN.xlsm]Order form'!$Q$33"},"Dropdown","1","1","1","1"]
[{"$f":"CELL(\"address\",'Order form'!Q33)","v":"'[LIFTBOY5_Order form_2022_EN.xlsm]Order form'!$Q$33"},"Dropdown","2","2","2","2"]
[{"$f":"CELL(\"address\",'Order form'!Q34)","v":"'[LIFTBOY5_Order form_2022_EN.xlsm]Order form'!$Q$34"},"Dropdown","No","Nein","Non","No"]
[{"$f":"CELL(\"address\",'Order form'!Q34)","v":"'[LIFTBOY5_Order form_2022_EN.xlsm]Order form'!$Q$34"},"Dropdown","1","1","1","1"]
[{"$f":"CELL(\"address\",'Order form'!Q34)","v":"'[LIFTBOY5_Order form_2022_EN.xlsm]Order form'!$Q$34"},"Dropdown","2","2","2","2"]
[{"$f":"CELL(\"address\",'Order form'!Q35)","v":"'[LIFTBOY5_Order form_2022_EN.xlsm]Order form'!$Q$35"},"Dropdown","No","Nein","Non","No"]
[{"$f":"CELL(\"address\",'Order form'!Q35)","v":"'[LIFTBOY5_Order form_2022_EN.xlsm]Order form'!$Q$35"},"Dropdown","1","1","1","1"]
[{"$f":"CELL(\"address\",'Order form'!Q35)","v":"'[LIFTBOY5_Order form_2022_EN.xlsm]Order form'!$Q$35"},"Dropdown","2","2","2","2"]
[{"$f":"CELL(\"address\",'Order form'!Q36)","v":"'[LIFTBOY5_Order form_2022_EN.xlsm]Order form'!$Q$36"},"Dropdown","No","Nein","Non","No"]
[{"$f":"CELL(\"address\",'Order form'!Q36)","v":"'[LIFTBOY5_Order form_2022_EN.xlsm]Order form'!$Q$36"},"Dropdown","Yes","Ja","Oui","Sí"]
[{"$f":"CELL(\"address\",'Order form'!Q37)","v":"'[LIFTBOY5_Order form_2022_EN.xlsm]Order form'!$Q$37"},"Dropdown","No","Nein","Non","No"]
[{"$f":"CELL(\"address\",'Order form'!Q37)","v":"'[LIFTBOY5_Order form_2022_EN.xlsm]Order form'!$Q$37"},"Dropdown","Yes","Ja","Oui","Sí"]
[{"$f":"CELL(\"address\",'Order form'!Q38)","v":"'[LIFTBOY5_Order form_2022_EN.xlsm]Order form'!$Q$38"},"Dropdown","No","Nein","Non","No"]
[{"$f":"CELL(\"address\",'Order form'!Q38)","v":"'[LIFTBOY5_Order form_2022_EN.xlsm]Order form'!$Q$38"},"Dropdown","Yes","Ja","Oui","Sí"]
[{"$f":"CELL(\"address\",'Order form'!Q39)","v":"'[LIFTBOY5_Order form_2022_EN.xlsm]Order form'!$Q$39"},"Dropdown","No","Nein","Non","No"]
[{"$f":"CELL(\"address\",'Order form'!Q39)","v":"'[LIFTBOY5_Order form_2022_EN.xlsm]Order form'!$Q$39"},"Dropdown","Yes","Ja","Oui","Sí"]
[{"$f":"CELL(\"address\",'Order form'!Q40)","v":"'[LIFTBOY5_Order form_2022_EN.xlsm]Order form'!$Q$40"},"Dropdown","No","Nein","Non","No"]
[{"$f":"CELL(\"address\",'Order form'!Q40)","v":"'[LIFTBOY5_Order form_2022_EN.xlsm]Order form'!$Q$40"},"Dropdown","Yes","Ja","Oui","Sí"]
[{"$f":"CELL(\"address\",'Order form'!Q41)","v":"'[LIFTBOY5_Order form_2022_EN.xlsm]Order form'!$Q$41"},"Dropdown","No","Nein","Non","No"]
[{"$f":"CELL(\"address\",'Order form'!Q41)","v":"'[LIFTBOY5_Order form_2022_EN.xlsm]Order form'!$Q$41"},"Dropdown","Yes","Ja","Oui","Sí"]
[{"$f":"CELL(\"address\",'Order form'!Q42)","v":"'[LIFTBOY5_Order form_2022_EN.xlsm]Order form'!$Q$42"},"Dropdown","No","Nein","Non","No"]
[{"$f":"CELL(\"address\",'Order form'!Q42)","v":"'[LIFTBOY5_Order form_2022_EN.xlsm]Order form'!$Q$42"},"Dropdown","Yes","Ja","Oui","Sí"]
[{"$f":"CELL(\"address\",'Order form'!Q43)","v":"'[LIFTBOY5_Order form_2022_EN.xlsm]Order form'!$Q$43"},"Dropdown","Left opening","Links","A gauche","Izquierda"]
[{"$f":"CELL(\"address\",'Order form'!Q43)","v":"'[LIFTBOY5_Order form_2022_EN.xlsm]Order form'!$Q$43"},"Dropdown","Right opening","Rechts","Droit","Derecha"]
[{"$f":"CELL(\"address\",'Order form'!Q44)","v":"'[LIFTBOY5_Order form_2022_EN.xlsm]Order form'!$Q$44"},"Dropdown","Automatic access ramp","Automatische Auffahrrampe","Rampe automatique","Rampa automatica"]
[{"$f":"CELL(\"address\",'Order form'!Q44)","v":"'[LIFTBOY5_Order form_2022_EN.xlsm]Order form'!$Q$44"},"Dropdown","Platform gate with left opening","Plattformtür links","Portillon a gauche","Puerta izquierda"]
[{"$f":"CELL(\"address\",'Order form'!Q44)","v":"'[LIFTBOY5_Order form_2022_EN.xlsm]Order form'!$Q$44"},"Dropdown","Platform gate with right opening","Plattformtür rechts","Portillon droit","Puerta derecha"]
[{"$f":"CELL(\"address\",'Order form'!Q45)","v":"'[LIFTBOY5_Order form_2022_EN.xlsm]Order form'!$Q$45"},"Dropdown","No","Nein","Non","No"]
[{"$f":"CELL(\"address\",'Order form'!Q45)","v":"'[LIFTBOY5_Order form_2022_EN.xlsm]Order form'!$Q$45"},"Dropdown","Yes","Ja","Oui","Sí"]
[{"$f":"CELL(\"address\",'Order form'!Q46)","v":"'[LIFTBOY5_Order form_2022_EN.xlsm]Order form'!$Q$46"},"Dropdown","No","Nein","Non","No"]
[{"$f":"CELL(\"address\",'Order form'!Q46)","v":"'[LIFTBOY5_Order form_2022_EN.xlsm]Order form'!$Q$46"},"Dropdown","Yes","Ja","Oui","Sí"]
[]
[{"$f":"CELL(\"address\",'Order form'!B48)","v":"'[LIFTBOY5_Order form_2022_EN.xlsm]Order form'!$B$48"},"Label","Further specifications","Weitere Optionen","Autres options","Especificaciones adicionales"]
[{"$f":"CELL(\"address\",'Order form'!B49)","v":"'[LIFTBOY5_Order form_2022_EN.xlsm]Order form'!$B$49"},"Label","Transport box","Transportkiste","Boîte de transport","Caja de transporte"]
[{"$f":"CELL(\"address\",'Order form'!B50)","v":"'[LIFTBOY5_Order form_2022_EN.xlsm]Order form'!$B$50"},"Label","Change in the order after approval","Änderung nach Produktionsstart","Change in the order after approval","Change in the order after approval"]
[{"$f":"CELL(\"address\",'Order form'!B51)","v":"'[LIFTBOY5_Order form_2022_EN.xlsm]Order form'!$B$51"},"Label","Warranty in months","Garantie","Garantie","Garantia"]
[]
[{"$f":"CELL(\"address\",'Order form'!B53)","v":"'[LIFTBOY5_Order form_2022_EN.xlsm]Order form'!$B$53"},"Label","Montáž ALTECH"]
[{"$f":"CELL(\"address\",'Order form'!B54)","v":"'[LIFTBOY5_Order form_2022_EN.xlsm]Order form'!$B$54"},"Label","Vzdálenost do místa instalace v km"]
[{"$f":"CELL(\"address\",'Order form'!B55)","v":"'[LIFTBOY5_Order form_2022_EN.xlsm]Order form'!$B$55"},"Label","Zapuštění plošiny do jámy"]
[{"$f":"CELL(\"address\",'Order form'!B56)","v":"'[LIFTBOY5_Order form_2022_EN.xlsm]Order form'!$B$56"},"Label","Stavební úpravy ALTECH"]
[{"$f":"CELL(\"address\",'Order form'!B57)","v":"'[LIFTBOY5_Order form_2022_EN.xlsm]Order form'!$B$57"},"Label","El. přípojka ALTECH"]
[{"$f":"CELL(\"address\",'Order form'!B58)","v":"'[LIFTBOY5_Order form_2022_EN.xlsm]Order form'!$B$58"},"Label","Electric supply position","Position eleketrisches Kabel","Situation de l'approvisionnement en électricité","Posición de suministro eléctrico"]
[]
[{"$f":"CELL(\"address\",'Order form'!Q49)","v":"'[LIFTBOY5_Order form_2022_EN.xlsm]Order form'!$Q$49"},"Dropdown","Q1 - wooden box (standard)","Q1 - Holzkiste (Standard)","Q1 - Boîte en bois (standard)","Q1 - Caja de madera (estandard)"]
[{"$f":"CELL(\"address\",'Order form'!Q49)","v":"'[LIFTBOY5_Order form_2022_EN.xlsm]Order form'!$Q$49"},"Dropdown","Q3 - wooden box for sea transport","Q3 - Holzkiste für Seetransport","Q3 - Caisse en bois pour le transport maritime","Q3 - Caja de madera para el transporte marítimo"]
[{"$f":"CELL(\"address\",'Order form'!Q49)","v":"'[LIFTBOY5_Order form_2022_EN.xlsm]Order form'!$Q$49"},"Dropdown","Q3 - wooden box for air transport","Q3 - Holzkiste für Lufttransport","Q3 - Caisse en bois pour le transport aérien","Q3 - Caja de madera para transporte aéreo"]
[{"$f":"CELL(\"address\",'Order form'!Q50)","v":"'[LIFTBOY5_Order form_2022_EN.xlsm]Order form'!$Q$50"},"Dropdown","No","Nein","Non","No"]
[{"$f":"CELL(\"address\",'Order form'!Q50)","v":"'[LIFTBOY5_Order form_2022_EN.xlsm]Order form'!$Q$50"},"Dropdown","Yes","Ja","Oui","Sí"]
[{"$f":"CELL(\"address\",'Order form'!Q51)","v":"'[LIFTBOY5_Order form_2022_EN.xlsm]Order form'!$Q$51"},"Dropdown","12","12","12","12"]
[{"$f":"CELL(\"address\",'Order form'!Q51)","v":"'[LIFTBOY5_Order form_2022_EN.xlsm]Order form'!$Q$51"},"Dropdown","24","24","24","24"]
[{"$f":"CELL(\"address\",'Order form'!Q51)","v":"'[LIFTBOY5_Order form_2022_EN.xlsm]Order form'!$Q$51"},"Dropdown","36","36","36","36"]
[{"$f":"CELL(\"address\",'Order form'!Q51)","v":"'[LIFTBOY5_Order form_2022_EN.xlsm]Order form'!$Q$51"},"Dropdown","48","48","48","48"]
[{"$f":"CELL(\"address\",'Order form'!Q51)","v":"'[LIFTBOY5_Order form_2022_EN.xlsm]Order form'!$Q$51"},"Dropdown","60","60","60","60"]
[{"$f":"CELL(\"address\",'Order form'!Q51)","v":"'[LIFTBOY5_Order form_2022_EN.xlsm]Order form'!$Q$51"},"Dropdown","other","other","other","other"]
[{"$f":"CELL(\"address\",'Order form'!Q53)","v":"'[LIFTBOY5_Order form_2022_EN.xlsm]Order form'!$Q$53"},"Dropdown","No","Nein","Non","No"]
[{"$f":"CELL(\"address\",'Order form'!Q53)","v":"'[LIFTBOY5_Order form_2022_EN.xlsm]Order form'!$Q$53"},"Dropdown","Yes","Ja","Oui","Sí"]
[{"$f":"CELL(\"address\",'Order form'!Q55)","v":"'[LIFTBOY5_Order form_2022_EN.xlsm]Order form'!$Q$55"},"Dropdown","No","Nein","Non","No"]
[{"$f":"CELL(\"address\",'Order form'!Q55)","v":"'[LIFTBOY5_Order form_2022_EN.xlsm]Order form'!$Q$55"},"Dropdown","Yes","Ja","Oui","Sí"]
[{"$f":"CELL(\"address\",'Order form'!Q56)","v":"'[LIFTBOY5_Order form_2022_EN.xlsm]Order form'!$Q$56"},"Dropdown","No","Nein","Non","No"]
[{"$f":"CELL(\"address\",'Order form'!Q56)","v":"'[LIFTBOY5_Order form_2022_EN.xlsm]Order form'!$Q$56"},"Dropdown","Yes","Ja","Oui","Sí"]
[{"$f":"CELL(\"address\",'Order form'!Q57)","v":"'[LIFTBOY5_Order form_2022_EN.xlsm]Order form'!$Q$57"},"Dropdown","No","Nein","Non","No"]
[{"$f":"CELL(\"address\",'Order form'!Q57)","v":"'[LIFTBOY5_Order form_2022_EN.xlsm]Order form'!$Q$57"},"Dropdown","Yes","Ja","Oui","Sí"]
[{"$f":"CELL(\"address\",'Order form'!Q58)","v":"'[LIFTBOY5_Order form_2022_EN.xlsm]Order form'!$Q$58"},"Dropdown","Back - right side","Hinten rechts","Retour - côté droit","Atrás - lado derecho"]
[{"$f":"CELL(\"address\",'Order form'!Q58)","v":"'[LIFTBOY5_Order form_2022_EN.xlsm]Order form'!$Q$58"},"Dropdown","Back - left side","Hinten links","Retour - côté gauche","Atrás - lado izquierdo"]
[{"$f":"CELL(\"address\",'Order form'!Q58)","v":"'[LIFTBOY5_Order form_2022_EN.xlsm]Order form'!$Q$58"},"Dropdown","Front - right side","Vorne rechts","Avant - côté droit","Frente - lado derecho"]
[{"$f":"CELL(\"address\",'Order form'!Q58)","v":"'[LIFTBOY5_Order form_2022_EN.xlsm]Order form'!$Q$58"},"Dropdown","Front - left side","Vorne links","Avant - côté gauche","Frente - lado izquierdo"]
[]
[{"$f":"CELL(\"address\",'Order form'!B62)","v":"'[LIFTBOY5_Order form_2022_EN.xlsm]Order form'!$B$62"},"Label","Additional information","Zusätzliche Information","Information additionnelle","Información Adicional"]
[{"$f":"CELL(\"address\",'Order form'!B71)","v":"'[LIFTBOY5_Order form_2022_EN.xlsm]Order form'!$B$71"},"Label","Delivery date","Lieferdatum","Date de livraison","Fecha de entrega"]
[{"$f":"CELL(\"address\",'Order form'!V71)","v":"'[LIFTBOY5_Order form_2022_EN.xlsm]Order form'!$V$71"},"Label","Prepared by","Bearbeitet von","Preparé par","Preparado por"]
[{"$f":"CELL(\"address\",'Order form'!H71)","v":"'[LIFTBOY5_Order form_2022_EN.xlsm]Order form'!$H$71"},"Label","Week","Woche","Semaine","Semana"]

{"sheet":"LangBackup","index":2,"n_rows":164,"n_cols":5,"rows_kept":164,"cut":false,"hidden":true,"merged":[]}
["Cell","Type","English","Deutsch","French"]
["Q3","Label","ALPHA stairlift","Alpha Treppenlift"]
["Q4","Label","Order form","Bestellformular","Bon de commande"]
["D3","Label","Dimension No.","Abmessung Nr.","Numéro de dimension"]
["D5","Label","Language","Sprache","La langue"]
["AD3","Label","Date:","Datum:","l' date"]
["AD4","Label","Version:","Version:","Version"]
["P6","Label","Distributor: (always fill out)","Händler: (immer ausfüllen)","Distributeur: (remplissez toujours)"]
["AB6","Label","Delivery address: (always fill out)","Lieferadresse: (immer ausfüllen)","Adresse de livraison: (remplissez toujours)"]
["P7","Label","Company:","Firma:","Enterprise"]
["B7","Label","Company:","Firma:","Enterprise"]
["P9","Label","Address","Anschrift","Une robe"]
["AB9","Label","Address","Anschrift","Une robe"]
["P10","Label","Postcode","Postleitzahl","Code postal"]
["AB10","Label","Postcode","Postleitzahl","Code postal"]
["P11","Label","City","Stadt","Ville"]
["AB11","Label","City","Stadt","Ville"]
["P12","Label","Country","Land","le pays"]
["AB12","Label","Country","Land","le pays"]
["D23","Label","Installation location","Installationsort"]
["D24","Label","Installation side","Montageseite","Côté d'installation"]
["C17","Label","Pick up address for lifts: Spedition Englmayer, Wiesenstrasse 71, 4600 Wels, Austria","ABHOLADRESSE: Spedition Englmayer, Wiesenstrasse 71, 4600 Wels, Austria"]
["C19","Label","Production No.","Produktionsnummer"]
["I19","Label","Order reference name (or number)","Auftragsreferenz (Name oder Nummer)"]
["C22","Label","Rail specification","Schienenspezifikation"]
["D25","Label","Rail length in meters rounded","Schienenlänge (ungefähr in m)","Longueur du rail en mètres arrondis"]
["D26","Label","Lower stop","Untere Haltestelle","Arrêt inférieur"]
["D27","Label","Upper stop","Obere Haltestelle","Arrêt supérieur"]
["D28","Label","Number of 90° curves","Anzahl der 90° Kurven","Nombre de courbes à 90°"]
["D28","Label","Number of 180° curves","Anzahl der 180° Kurven","Nombre de courbes à 180°"]
["D30","Label","Number of special curves","Anzahl der Spezialkurven","Nombre de courbes spéciales"]
["D31","Label","Number of negative curves","Anzahl der Negativkurven"]
["D32","Label","Number of vertical bends","Number of vertical bends"]
["D33","Label","Number of intermediate stops","Anzahl der Zwischenhaltestellen"]
["D34","Label","Rail surface treatment","Schienenfarbe"]
["AD26","Formula","=IF(R26=\"straight start with bottom overrun\",\"mm from first step to end of chair\", \"\")","=IF(R26=\"Gerade mit horizontalem Auslauf\",\"mm von erster Stufe bis Ende Sitz\", \"\")"]
["AD27","Formula","=IF(R27=\"straight top overrun\",\"mm from last step to end of chair\", \"\")","=IF(R27=\"Gerader Überlauf\",\"mm von letzter Stufe bis Ende Sitz\", \"\")"]
["R23","Dropdown","Indoor","Innen"]
["R23","Dropdown","Outdoor","Im Außenbereich"]
["R24","Dropdown","Left","Links","La gauche"]
["R24","Dropdown","Right","Rechts","Droite"]
["R26","Dropdown","Straight","Gerade","Tout droit"]
["R26","Dropdown","Straight with steep start","Gerade mit Steilstart","Droit avec début raide"]
["R26","Dropdown","Straight start with bottom overrun","Gerade mit horizontalem Auslauf","Début droit avec dépassement du bas"]
["R26","Dropdown","90°","90°","90°"]
["R26","Dropdown","180°","180°","180°"]
["R26","Dropdown","Special curve","Spezialkurve","Courbe spéciale"]
["R27","Dropdown","Straight at last step","Gerade an letzter Stufe","Droit à la dernière étape"]
["R27","Dropdown","Straight top overrun","Gerader Überlauf","Débordement droit"]
["R27","Dropdown","90° on top landing","90° auf oberem Podest","Atterrissage supérieur à 90°"]
["R27","Dropdown","180° on top landing","180° auf oberem Podest","Atterrissage supérieur à 180°"]
["R27","Dropdown","Special curve on top landing","Spezialkurve auf oberem Podest","Courbe spéciale sur le palier supérieur"]
["R34","Dropdown","RAL 7035 (standard)","RAL 7035 (Standard)"]
["R34","Dropdown","special RAL","Spezial RAL"]
["R34","Dropdown","zinc + RAL 7035","Verzinkt + RAL 7035"]
["R34","Dropdown","zinc + special RAL","Verzinkt + spezial RAL"]
["C36","Label","Design specifications","Sitz Design Optionen","Les spécifications de conception"]
["D37","Label","Execution","Ausführung","Exécution"]
["D38","Label","Seat design type","Sitz Design Typ","Type de conception du siège"]
["D39","Label","Upholstery","Sitzfarbe","Tapisserie"]
["D40","Label","Automatic footrest folding","Automatisches Fußbrett","Repose-pied automatique"]
["D41","Label","Automatic seat swivel","Automatischer Drehsitz","Siège pivotant automatique"]
["D42","Label","Bigger armrest distance (+100mm)","Größere Distanz zwischen Armlehnen ","Plus grande distance d'accoudoir (+ 100mm)"]
["D43","Label","Joystick position side","Joystickposition","Position du joystick"]
["D44","Label","External landing controls (always radio)","Externe Landekontrollen (immer Radio)","Contrôles d'atterrissage externes (toujours radio)"]
["D45","Label","Type of key","Art des Schlüssels","Type de clé"]
["D46","Label","Total no. of external landing controls","Anzahl Fernbedienungen gesamt","Nombre total de contrôles d'atterrissage externes"]
["D47","Label","Postion of external controls","Stellung externer Kontrollen","Position des contrôles externes"]
["R37","Dropdown","Stairlift + rail (standard)","Kompletter Lift "]
["R37","Dropdown","Rail only","Nur Schiene"]
["AS39","Label","Blue","Blau","Bleu"]
["AS40","Label","Red","rot","rouge"]
["AS41","Label","Brown","Braun","marron"]
["AS42","Label","Green","Grün","vert"]
["AS43","Label","Beige","Beige","Beige"]
["AS44","Label","Light gray","Hellgrau","Gris clair"]
["AT39","Label","Marine blue","Marineblau","Bleu marine"]
["AT40","Label","Emerald green","Smaragdgrün","vert émeraude"]
["AT41","Label","Ruby red","Rubinrot","rouge rubis"]
["AT42","Label","Pearl white","Perlweiss","Perle blanche"]
["AT43","Label","Walnut brown","Walnussbraun","Marron"]
["AT44","Label","Safran yellow","Safran-Gelb","Jaune safran"]
["AU39","Label","Marine blue","Marineblau","Bleu marine"]
["AU40","Label","Emerald green","Smaragdgrün","vert émeraude"]
["AU41","Label","Ruby red","Rubinrot","rouge rubis"]
["AU42","Label","Pearl white","Perlweiss","Perle blanche"]
["AU43","Label","Walnut brown","Walnussbraun","Marron"]
["AU44","Label","Safran yellow","Safran-Gelb","Jaune safran"]
["AV39","Label","Olive (woven textile)","Olive (gewebtes Textil)","Olive (textile tissé)"]
["AV40","Label","Granite (woven textile)","Granit (gewebtes Textil)","Granite (textile tissé)"]
["AV41","Label","Bordeaux (woven textile)","Bordeaux (gewebtes Textil)","Bordeaux (textile tissé)"]
["AV42","Label","Marble (woven textile)","Marmor (gewebtes Textil)","Marbre (textile tissé)"]
["AV43","Label","Ivory (woven textile)","Elfenbein (gewebtes Textil)","Ivoire (textile tissé)"]
["AV44","Label","Basalt (artificial leather)","Basalt (Kunstleder)","Basalte (cuir artificiel)"]
["AV45","Label","Burgundy (artificial leather)","Burgund (Kunstleder)","Bourgogne (cuir artificiel)"]
["AV46","Label","Mocha (artificial leather)","Mokka (Kunstleder)","Moka (cuir artificiel)"]
["R39","Switch","Blue","Blau","Bleu"]
["R39","Switch","Red","rot","rouge"]
["R39","Switch","Brown","Braun","marron"]
["R39","Switch","Green","Grün","vert"]
["R39","Switch","Beige","Beige","Beige"]
["R39","Switch","Light gray","Hellgrau","Gris clair"]
["R39","Switch","Marine blue","Marineblau","Bleu marine"]
["R39","Switch","Emerald green","Smaragdgrün","vert émeraude"]
["R39","Switch","Ruby red","Rubinrot","rouge rubis"]
["R39","Switch","Pearl white","Perlweiss","Perle blanche"]
["R39","Switch","Walnut brown","Walnussbraun","Marron"]
["R39","Switch","Safran yellow","Safran-Gelb","Jaune safran"]
["R39","Switch","Olive (woven textile)","Olive (gewebtes Textil)","Olive (textile tissé)"]
["R39","Switch","Granite (woven textile)","Granit (gewebtes Textil)","Granite (textile tissé)"]
["R39","Switch","Bordeaux (woven textile)","Bordeaux (gewebtes Textil)","Bordeaux (textile tissé)"]
["R39","Switch","Marble (woven textile)","Marmor (gewebtes Textil)","Marbre (textile tissé)"]
["R39","Switch","Ivory (woven textile)","Elfenbein (gewebtes Textil)","Ivoire (textile tissé)"]
["R39","Switch","Basalt (artificial leather)","Basalt (Kunstleder)","Basalte (cuir artificiel)"]
["R39","Switch","Burgundy (artificial leather)","Burgund (Kunstleder)","Bourgogne (cuir artificiel)"]
["R39","Switch","Mocha (artificial leather)","Mokka (Kunstleder)","Moka (cuir artificiel)"]
["R40","Dropdown","Yes","Ja","Oui"]
["R40","Dropdown","No","Nein","Non"]
["R41","Dropdown","Yes","Ja","Oui"]
["R41","Dropdown","No","Nein","Non"]
["R42","Dropdown","Yes","Ja","Oui"]
["R42","Dropdown","No","Nein","Non"]
["R43","Dropdown","On downstairs side (standard)","Talseitig","Côté bas (standard)"]
["R43","Dropdown","On upstairs side (optional)","Bergseitig","Du côté de l'étage (facultatif)"]
["R44","Dropdown","Membrane keypad (standard)","Folientastatur (Standard)","Clavier à membrane (standard)"]
["R44","Dropdown","Big push buttons","Großer Taster","Gros boutons poussoirs"]
["R45","Dropdown","Without key","Ohne Schlüssel","Sans clé"]
["R45","Dropdown","Mini key","Minischlüssel","Mini clé"]
["R47","Dropdown","Handset","Handkassette","Combiné"]
["R47","Dropdown","Wall-mounted","Wantmontiert","Mural"]
["R47","Dropdown","Pillar-mounted","Stützenmontiert","Monté sur pilier"]
["C49","Label","Further options","Zusätzliche Optionen"]
["D50","Label","Plastic cover for outdoor stairlift","Plastic cover for outdoor stairlift"]
["D54","Label","Warranty time","Warranty time"]
["D55","Label","Stainless steel label","Stainless steel label"]
["D56","Label","Transport box","Transportbox"]
["D59","Label","Drawing time urgency in working days","Drawing time urgency in days"]
["D60","Label","Service display","Service display"]
["D61","Label","Plastic cover for footplates","Kunststoffabdeckung für Stützenfüße"]
["D62","Label","Stand-up seat version (up to 120 kg)","Variante Stehsitz (bis zu 120 kg)"]
["D63","Label","Higher loading capacity of 145kg","Höhere Traglast bis 145 kg"]
["D64","Label","Optional user dimensions","Benutzergröße (optional)"]
["D65","Label","Extra heavy batteries","Extra starke Batterien"]
["R64","Label","Height from seat to head:","Maß Sitz bis Kopf"]
["AC64","Label","Distance from back to knees:","Maß Rücken bis Knie"]
["R50","Dropdown","Yes","Ja","Oui"]
[{"$f":"A146","v":"R50"},"Dropdown","No","Nein","Non"]
["R60","Dropdown","Yes","Ja","Oui"]
[{"$f":"A148","v":"R60"},"Dropdown","No","Nein","Non"]
["R61","Dropdown","Yes","Ja","Oui"]
[{"$f":"A150","v":"R61"},"Dropdown","No","Nein","Non"]
["R62","Dropdown","Yes","Ja","Oui"]
[{"$f":"A152","v":"R62"},"Dropdown","No","Nein","Non"]
["R63","Dropdown","Yes","Ja","Oui"]
[{"$f":"A154","v":"R63"},"Dropdown","No","Nein","Non"]
["C67","Label","Supporting structure","Art der Befestigung"]
["D68","Label","Fixing of the rails","Fixierung der Schiene"]
["R68","Dropdown","into the steps (standard)","Auf Stützen in die Treppe"]
["R68","Dropdown","clamp fixing on the steps","Mit Klemmen an die Treppe"]
["R68","Dropdown","on the wall with supporting pillars","An die Wand"]
["C72","Label","Additional information","Zusätzliche Information"]
["C81","Label","Delivery date","Lieferdatim:"]
["W81","Label","Prepared by","Bearbeitet von:"]
["K81","Label","Week","Woche","la semaine"]

{"sheet":"Setup","index":3,"n_rows":1,"n_cols":2,"rows_kept":1,"cut":false,"hidden":true,"merged":[]}
["Language","French"]